bitfinex/quotes_SOLUSD_20250413
["timestamp","ask_amount","ask_price","bid_price","bid_amount"]
[1744509222139,29.44200024,131.2,131.15,29.44470024]
[1744509222540,29.44200024,131.2,131.15,7.6248]
[1744509222740,29.44200024,131.2,131.15,29.44470024]
[1744509223458,21.81990024,131.21,131.15,29.44470024]
[1744509223673,21.81990024,131.2,131.15,29.44470024]
[1744509223854,7.6207,131.22,131.16,21.81990024]
[1744509224058,29.44060024,131.22,131.16,21.81990024]
[1744509224232,21.81990024,131.21,131.15,29.44470024]
[1744509224438,27.34564435,131.21,131.15,29.44470024]
[1744509224956,29.44200024,131.2,131.15,29.44470024]
[1744509225139,21.81990024,131.2,131.15,29.44470024]
[1744509225640,29.44140024,131.21,131.15,29.44470024]
[1744509227160,5.52884673,131.2,131.15,29.44470024]
[1744509227862,29.44140024,131.21,131.15,29.44470024]
[1744509228157,7.621,131.22,131.16,21.81990024]
[1744509228367,0.063,131.23,131.2,21.81990024]
[1744509228543,0.063,131.23,131.17,8.9]
[1744509228544,0.063,131.23,131.22,21.81990024]
[1744509229358,0.063,131.23,131.22,29.44060024]
[1744509230365,0.063,131.23,131.21,29.44100024]
[1744509230741,0.063,131.23,131.22,21.81990024]
[1744509231540,0.063,131.23,131.22,29.44060024]
[1744509231737,0.063,131.23,131.22,21.81990024]
[1744509231941,0.063,131.23,131.22,29.44060024]
[1744509232349,0.063,131.23,131.22,21.81990024]
[1744509232660,0.063,131.23,131.19,29.44230024]
[1744509233062,0.063,131.23,131.21,21.81990024]
[1744509233251,0.063,131.23,131.22,21.81990024]
[1744509233449,0.063,131.23,131.21,21.81990024]
[1744509233669,0.063,131.23,131.21,29.44090024]
[1744509234165,0.063,131.23,131.21,21.81990024]
[1744509234373,0.063,131.23,131.2,29.44160024]
[1744509234554,0.063,131.23,131.21,21.81990024]
[1744509235649,0.063,131.23,131.21,29.44110024]
[1744509235871,0.063,131.23,131.22,21.81990024]
[1744509236262,0.063,131.23,131.21,29.44110024]
[1744509237371,0.063,131.23,131.22,21.81990024]
[1744509238766,0.063,131.23,131.18,108.2808]
[1744509239073,0.063,131.23,131.2,21.81990024]
[1744509239269,0.063,131.23,131.21,21.81990024]
[1744509239458,0.063,131.23,131.21,29.44120024]
[1744509239974,0.063,131.23,131.21,7.6213]
[1744509240569,0.063,131.23,131.21,21.81990024]
[1744509240765,0.063,131.23,131.22,21.81990024]
[1744509242557,0.063,131.23,131.22,29.44060024]
[1744509242973,0.063,131.23,131.22,7.6207]
[1744509243170,0.063,131.23,131.22,29.44060024]
[1744509243869,0.063,131.25,131.23,20.21374886]
[1744509244054,0.063,131.25,131.24,21.81990024]
[1744509244675,0.063,131.25,131.24,29.43950024]
[1744509244872,0.063,131.25,131.23,95.3628]
[1744509245058,0.063,131.25,131.23,89.2199]
[1744509245260,0.063,131.25,131.24,21.81990024]
[1744509245573,0.063,131.25,131.23,89.2199]
[1744509245773,0.063,131.25,131.24,21.81990024]
[1744509246381,0.063,131.25,131.23,89.2199]
[1744509246681,0.063,131.25,131.24,29.43950024]
[1744509247292,0.063,131.25,131.24,13.61424775]
[1744509248875,13.67724775,131.25,131.19,81.6]
[1744509249178,13.61424775,131.24,131.19,13.61424775]
[1744509249357,13.61424775,131.21,131.16,81.6]
[1744509249557,13.61424775,131.21,131.16,95.21424775]
[1744509249855,26.0,131.24,131.18,13.61424775]
[1744509250071,13.61424775,131.23,131.18,13.61424775]
[1744509250270,0.063,131.25,131.18,13.61424775]
[1744509250780,13.61424775,131.23,131.18,21.23674775]
[1744509251157,7.6197,131.24,131.2,13.61424775]
[1744509251959,7.6197,131.24,131.19,13.61424775]
[1744509252356,7.6197,131.24,131.2,13.61424775]
[1744509252558,13.61424775,131.23,131.17,7.6236]
[1744509252758,13.61424775,131.22,131.17,21.23784775]
[1744509252965,13.61424775,131.23,131.18,13.61424775]
[1744509253161,21.29644775,131.25,131.2,13.61424775]
[1744509253365,13.61424775,131.23,131.18,13.61424775]
[1744509254477,26.7298,131.25,131.17,21.23784775]
[1744509254478,13.61424775,131.22,131.17,21.23784775]
[1744509254683,21.23514775,131.22,131.17,21.23784775]
[1744509254871,13.61424775,131.2,131.16,81.6]
[1744509255059,13.61424775,131.19,131.14,13.61424775]
[1744509255256,13.61424775,131.19,131.13,8.9]
[1744509255459,13.61424775,131.18,131.13,22.51424775]
[1744509255678,19.93314775,131.2,131.14,13.61424775]
[1744509255875,19.93314775,131.2,131.15,13.61424775]
[1744509256459,6.3189,131.2,131.16,13.61424775]
[1744509256663,21.23514775,131.22,131.17,13.61424775]
[1744509256866,7.6209,131.22,131.18,13.61424775]
[1744509257062,7.6209,131.22,131.13,27.54964886]
[1744509257266,21.23514775,131.22,131.17,13.61424775]
[1744509257787,21.23514775,131.22,131.13,109.14964886]
[1744509257988,26.6728,131.22,131.13,81.6]
[1744509258489,13.61424775,131.19,131.13,81.6]
[1744509258693,13.61424775,131.21,131.16,13.61424775]
[1744509258882,21.23514775,131.22,131.16,13.61424775]
[1744509259078,7.6209,131.22,131.18,13.61424775]
[1744509259286,21.23514775,131.22,131.17,13.61424775]
[1744509259765,21.23514775,131.22,131.13,19.07613357]
[1744509259966,21.23514775,131.22,131.17,13.61424775]
[1744509260368,21.23514775,131.22,131.16,7.6238]
[1744509260568,7.6209,131.22,131.17,13.61424775]
[1744509260786,7.6209,131.22,131.18,13.61424775]
[1744509261395,7.6209,131.22,131.16,89.2238]
[1744509261568,21.23514775,131.22,131.16,89.2238]
[1744509261769,21.23514775,131.22,131.17,13.61424775]
[1744509262063,21.23514775,131.22,131.17,21.23784775]
[1744509262487,21.23514775,131.22,131.17,13.61424775]
[1744509262685,13.61424775,131.2,131.16,81.6]
[1744509262872,13.61424775,131.2,131.15,13.61424775]
[1744509263072,13.61424775,131.19,131.13,21.24004775]
[1744509263991,21.23724775,131.19,131.14,13.61424775]
[1744509264574,13.61424775,131.16,131.11,81.6]
[1744509264783,13.61424775,131.16,131.1,21.27154775]
[1744509265092,13.61424775,131.17,131.11,13.61424775]
[1744509265285,13.61424775,131.15,131.1,21.27154775]
[1744509265490,13.61424775,131.15,131.1,13.64424775]
[1744509265690,13.61424775,131.13,131.1,0.03]
[1744509265887,6.345,131.16,131.1,0.03]
[1744509265888,13.61424775,131.14,131.1,0.03]
[1744509266095,21.23994775,131.14,131.1,0.03]
[1744509266277,7.6257,131.14,131.1,0.03]
[1744509266474,13.61424775,131.13,131.1,0.03]
[1744509266874,21.23914775,131.15,131.1,13.64424775]
[1744509267695,27.58364775,131.16,131.11,13.61424775]
[1744509268312,13.61424775,131.14,131.1,0.03]
[1744509268606,13.61424775,131.15,131.1,13.64424775]
[1744509269075,13.61424775,131.13,131.1,0.03]
[1744509269493,13.61424775,131.14,131.1,0.03]
[1744509269671,13.9694,131.16,131.1,0.03]
[1744509269874,13.61424775,131.14,131.1,0.03]
[1744509270087,13.61424775,131.13,131.1,0.03]
[1744509270493,13.61424775,131.14,131.1,0.03]
[1744509270883,27.58364775,131.16,131.11,13.61424775]
[1744509271206,13.9694,131.16,131.11,13.61424775]
[1744509271405,7.6244,131.16,131.11,13.61424775]
[1744509271699,21.23794775,131.17,131.12,13.61424775]
[1744509271895,21.23794775,131.17,131.1,0.03]
[1744509272489,7.6237,131.17,131.13,13.61424775]
[1744509272698,21.23794775,131.17,131.12,13.61424775]
[1744509273005,21.23794775,131.17,131.11,7.6267]
[1744509273299,21.23794775,131.17,131.12,13.61424775]
[1744509273598,1.6657,131.18,131.11,21.24094775]
[1744509273599,21.23884775,131.16,131.11,21.24094775]
[1744509274003,21.23804775,131.17,131.12,13.61424775]
[1744509274305,7.6238,131.17,131.11,21.24094775]
[1744509274492,13.61424775,131.16,131.11,13.61424775]
[1744509274675,13.61424775,131.14,131.1,0.03]
[1744509274872,13.61424775,131.11,131.1,0.03]
[1744509275478,13.61424775,131.13,131.1,0.03]
[1744509275677,7.6266,131.12,131.1,0.03]
[1744509275878,21.24084775,131.12,131.1,0.03]
[1744509276579,13.61424775,131.11,131.1,0.03]
[1744509277612,7.6266,131.12,131.1,0.03]
[1744509277915,6.5995,131.16,131.11,13.61424775]
[1744509278201,6.5995,131.16,131.1,0.03]
[1744509278202,13.61424775,131.14,131.1,0.03]
[1744509278410,21.23914775,131.15,131.1,0.03]
[1744509278903,13.61424775,131.13,131.1,0.03]
[1744509279808,13.61424775,131.11,131.1,0.03]
[1744509280181,7.6254,131.14,131.1,0.03]
[1744509280480,1.6657,131.18,131.11,13.61424775]
[1744509280685,21.23784775,131.17,131.12,13.61424775]
[1744509281506,21.23784775,131.17,131.1,0.03]
[1744509281714,26.6828,131.17,131.1,0.03]
[1744509281880,13.61424775,131.14,131.1,0.03]
[1744509282080,13.61424775,131.15,131.1,0.03]
[1744509282287,13.61424775,131.15,131.1,13.64424775]
[1744509282496,13.61424775,131.16,131.11,13.61424775]
[1744509283012,7.6236,131.17,131.12,13.61424775]
[1744509283194,13.61424775,131.16,131.11,13.61424775]
[1744509284019,7.6236,131.17,131.11,13.61424775]
[1744509284317,13.61424775,131.16,131.11,13.61424775]
[1744509284882,7.6236,131.17,131.12,13.61424775]
[1744509285096,20.16894775,131.2,131.14,13.61424775]
[1744509285296,20.16894775,131.2,131.15,13.61424775]
[1744509285609,13.61424775,131.21,131.16,13.61424775]
[1744509286114,13.61424775,131.2,131.12,6.2327]
[1744509286509,13.61424775,131.2,131.15,13.61424775]
[1744509287090,13.61424775,131.18,131.12,6.2327]
[1744509287315,13.61424775,131.16,131.1,7.6576]
[1744509287527,13.61424775,131.15,131.1,0.03]
[1744509287730,13.61424775,131.15,131.1,13.64424775]
[1744509288007,13.61424775,131.16,131.11,13.61424775]
[1744509288189,13.61424775,131.15,131.1,0.03]
[1744509288391,13.61424775,131.15,131.1,13.64424775]
[1744509288792,21.23894775,131.16,131.11,13.61424775]
[1744509289512,21.23894775,131.16,131.11,21.24134775]
[1744509289695,21.23744775,131.18,131.13,13.61424775]
[1744509289896,13.61424775,131.19,131.14,13.61424775]
[1744509290095,15.9547,131.23,131.17,13.61424775]
[1744509290310,29.56894775,131.23,131.18,13.61424775]
[1744509290511,15.9547,131.23,131.18,13.61424775]
[1744509290809,13.61424775,131.22,131.14,1.5543]
[1744509291024,15.9547,131.23,131.19,13.61424775]
[1744509291195,30.63454775,131.23,131.18,13.61424775]
[1744509292008,17.0203,131.23,131.19,13.61424775]
[1744509292393,17.0203,131.23,131.18,13.61424775]
[1744509292593,30.63454775,131.23,131.18,13.61424775]
[1744509293411,38.82344091,131.23,131.18,21.80314091]
[1744509294106,17.0203,131.23,131.18,21.80314091]
[1744509294312,29.42294091,131.24,131.19,21.80314091]
[1744509295512,7.6198,131.24,131.2,21.80314091]
[1744509296117,7.6823,131.25,131.21,21.80314091]
[1744509298735,21.80314091,131.24,131.17,7.6236]
[1744509298922,21.80314091,131.23,131.18,21.80314091]
[1744509299222,7.6213,131.21,131.17,21.80314091]
[1744509300221,29.42444091,131.21,131.16,21.80314091]
[1744509300411,7.6213,131.21,131.13,81.6]
[1744509300613,7.6213,131.21,131.16,21.80314091]
[1744509300921,0.063,131.25,131.2,21.80314091]
[1744509301101,0.063,131.25,131.22,21.80314091]
[1744509301303,7.6821,131.25,131.19,7.6221]
[1744509301503,7.6821,131.25,131.21,21.80314091]
[1744509301504,0.063,131.25,131.21,21.80314091]
[1744509301917,0.063,131.25,131.22,21.80314091]
[1744509302423,0.063,131.25,131.24,21.80314091]
[1744509302999,0.063,131.25,131.2,21.80314091]
[1744509303213,0.063,131.25,131.23,21.80314091]
[1744509303728,0.063,131.25,131.22,7.6206]
[1744509303920,0.063,131.25,131.24,21.80314091]
[1744509305421,0.063,131.25,131.24,29.42274091]
[1744509307114,0.063,131.26,131.25,18.64964886]
[1744509307421,0.063,131.26,131.25,40.73711291]
[1744509307922,0.063,131.26,131.25,21.80314091]
[1744509308223,0.063,131.26,131.24,1.5733]
[1744509308224,0.063,131.26,131.24,21.80314091]
[1744509308434,0.063,131.26,131.23,17.0]
[1744509308632,0.063,131.26,131.24,21.80314091]
[1744509310638,0.063,131.26,131.25,21.80314091]
[1744509312004,0.063,131.26,131.23,9.38]
[1744509312418,0.063,131.26,131.23,31.18314091]
[1744509312724,0.063,131.26,131.24,21.80314091]
[1744509312919,0.063,131.26,131.25,21.80314091]
[1744509313505,0.063,131.26,131.25,29.42214091]
[1744509313754,0.063,131.26,131.25,21.80314091]
[1744509314030,0.063,131.26,131.25,29.42214091]
[1744509315422,0.063,131.26,131.25,21.22744678]
[1744509316130,0.063,131.26,131.25,13.60844678]
[1744509316607,0.063,131.26,131.25,21.22744678]
[1744509318944,0.063,131.26,131.25,121.76141878]
[1744509319826,0.063,131.29,131.25,140.80901878]
[1744509320030,0.063,131.29,131.28,13.60844678]
[1744509321150,0.063,131.29,131.28,21.22574678]
[1744509324840,0.063,131.29,131.28,13.60844678]
[1744509325217,0.063,131.29,131.26,9.3]
[1744509325435,0.063,131.29,131.27,13.60844678]
[1744509326033,0.063,131.29,131.28,13.60844678]
[1744509329246,0.063,131.29,131.27,13.60844678]
[1744509329447,13.67144678,131.29,131.23,81.6]
[1744509329633,13.67144678,131.29,131.24,13.60844678]
[1744509330323,0.063,131.29,131.25,13.60844678]
[1744509330541,0.063,131.29,131.26,13.60844678]
[1744509331223,0.063,131.29,131.25,13.60844678]
[1744509331644,0.063,131.29,131.26,13.60844678]
[1744509332848,0.063,131.29,131.27,13.60844678]
[1744509333527,0.063,131.29,131.27,21.22614678]
[1744509334344,0.063,131.29,131.26,13.60844678]
[1744509334735,0.063,131.29,131.27,13.60844678]
[1744509335845,0.063,131.29,131.27,21.22624678]
[1744509336448,0.063,131.29,131.28,13.60844678]
[1744509336649,0.063,131.29,131.28,114.28458035]
[1744509337751,0.063,131.29,131.28,121.90188035]
[1744509339645,0.0001,131.29,131.28,135.51032713]
[1744509339824,0.063,131.31,131.3,0.42648471]
[1744509340027,0.063,131.31,131.3,14.03493149]
[1744509340951,0.063,131.31,131.3,21.65103149]
[1744509343949,0.063,131.31,131.3,121.90068035]
[1744509344141,0.063,131.32,131.31,18.64964886]
[1744509344340,0.063,131.32,131.31,32.25809564]
[1744509344545,0.063,131.33,131.32,0.14216157]
[1744509344848,0.063,131.35,131.34,0.42648471]
[1744509345031,13.67144678,131.35,131.29,7.6162]
[1744509345244,13.60844678,131.34,131.29,21.22464678]
[1744509345547,13.60844678,131.33,131.28,13.60844678]
[1744509345752,9.2026,131.35,131.29,13.60844678]
[1744509345949,13.60844678,131.33,131.28,13.60844678]
[1744509346265,9.2026,131.35,131.28,13.60844678]
[1744509346638,13.60844678,131.33,131.28,13.60844678]
[1744509346840,13.60844678,131.33,131.28,21.22564678]
[1744509347039,21.22284678,131.33,131.27,7.6176]
[1744509347251,21.22284678,131.33,131.28,13.60844678]
[1744509348653,13.60844678,131.3,131.24,26.26924886]
[1744509348841,13.60844678,131.31,131.25,13.60844678]
[1744509349153,7.6144,131.33,131.26,13.60844678]
[1744509349356,13.60844678,131.32,131.26,13.60844678]
[1744509349536,13.60844678,131.31,131.24,26.26924886]
[1744509349736,21.22434678,131.31,131.26,13.60844678]
[1744509350149,21.22434678,131.31,131.25,7.6188]
[1744509350350,13.60844678,131.31,131.26,13.60844678]
[1744509350549,7.6151,131.32,131.26,13.60844678]
[1744509350758,21.22354678,131.32,131.26,13.60844678]
[1744509351273,13.60844678,131.31,131.26,13.60844678]
[1744509351562,26.6484,131.34,131.26,21.22674678]
[1744509351737,13.60844678,131.32,131.26,21.22674678]
[1744509352138,13.60844678,131.31,131.26,21.22674678]
[1744509352341,13.60844678,131.31,131.26,13.60844678]
[1744509352553,13.60844678,131.31,131.26,21.22684678]
[1744509352755,13.60844678,131.32,131.27,13.60844678]
[1744509355441,13.60844678,131.31,131.26,21.22684678]
[1744509356363,10.5691,131.35,131.29,13.60844678]
[1744509356561,10.5691,131.35,131.32,13.60844678]
[1744509356562,1.5891,131.35,131.32,13.60844678]
[1744509356749,1.5891,131.35,131.26,133.33684886]
[1744509356750,5.50515222,131.34,131.3,0.42648471]
[1744509356951,5.50515222,131.34,131.33,21.22284678]
[1744509357564,0.063,131.35,131.33,21.22284678]
[1744509357863,0.063,131.35,131.34,32.25809564]
[1744509358948,0.063,131.35,131.34,39.87189564]
[1744509360663,0.063,131.37,131.35,18.79181043]
[1744509360846,0.063,131.37,131.36,32.25809564]
[1744509361042,0.063,131.37,131.36,7.6126]
[1744509361442,0.063,131.37,131.36,21.22104678]
[1744509361872,0.063,131.37,131.34,13.60844678]
[1744509362382,0.063,131.37,131.35,13.60844678]
[1744509362755,13.60844678,131.36,131.29,7.6167]
[1744509362942,13.60844678,131.34,131.29,21.22514678]
[1744509363339,7.6128,131.36,131.3,13.60844678]
[1744509363640,6.5284,131.37,131.32,13.60844678]
[1744509363844,6.5284,131.37,131.3,18.64964886]
[1744509363845,20.13684678,131.37,131.3,18.64964886]
[1744509364045,20.13684678,131.37,131.31,13.60844678]
[1744509364456,13.60844678,131.36,131.31,13.60844678]
[1744509364755,13.60844678,131.35,131.3,13.60844678]
[1744509365140,13.60844678,131.33,131.26,1.5388]
[1744509365346,13.60844678,131.35,131.3,13.60844678]
[1744509365658,0.063,131.37,131.34,13.60844678]
[1744509365849,0.063,131.37,131.35,13.60844678]
[1744509366658,0.063,131.37,131.36,13.60844678]
[1744509366846,0.063,131.37,131.35,13.60844678]
[1744509367046,0.063,131.37,131.34,13.60844678]
[1744509367361,0.063,131.37,131.35,13.60844678]
[1744509368369,0.063,131.37,131.34,13.60844678]
[1744509368960,0.063,131.37,131.32,7.6144]
[1744509369363,0.063,131.37,131.34,13.60844678]
[1744509369760,0.063,131.37,131.33,7.6139]
[1744509369958,0.063,131.37,131.32,7.6147]
[1744509370161,0.063,131.37,131.29,81.63]
[1744509370370,13.60844678,131.3,131.29,0.03]
[1744509370552,1.573,131.32,131.29,0.03]
[1744509371389,28.10341284,131.3,131.29,0.03]
[1744509371551,26.0,131.27,131.21,0.03]
[1744509371974,21.78101284,131.23,131.21,0.03]
[1744509372151,21.78101284,131.22,131.21,0.03]
[1744509373267,28.10341284,131.22,131.2,0.03]
[1744509373456,53.37383357,131.2,131.17,0.03]
[1744509373653,26.0,131.15,131.07,33.50845977]
[1744509373872,26.0,131.15,131.07,11.72744693]
[1744509374092,26.0,131.15,131.07,19.35684693]
[1744509374381,21.78101284,131.15,131.1,21.81101284]
[1744509374560,26.0,131.17,131.1,0.03]
[1744509374759,26.0,131.15,131.1,0.03]
[1744509375077,26.0,131.17,131.1,0.03]
[1744509375272,21.78101284,131.13,131.1,0.03]
[1744509375475,1.571,131.19,131.1,0.03]
[1744509375775,1.571,131.19,131.14,21.78101284]
[1744509375974,6.3224,131.22,131.13,19.07613357]
[1744509376175,21.78101284,131.21,131.13,18.64964886]
[1744509376354,6.3224,131.22,131.17,21.78101284]
[1744509376560,21.78101284,131.22,131.12,26.03]
[1744509376759,11.04,131.25,131.17,21.78101284]
[1744509376960,11.04,131.25,131.14,0.28432314]
[1744509377158,11.04,131.25,131.13,18.79181043]
[1744509377382,21.78101284,131.17,131.12,0.03]
[1744509377675,0.28432314,131.21,131.1,0.03]
[1744509377676,26.0,131.11,131.1,0.03]
[1744509377978,47.78101284,131.11,131.1,0.03]
[1744509378180,33.00668471,131.11,131.1,0.03]
[1744509378357,54.78769755,131.11,131.1,0.03]
[1744509378561,54.36121284,131.11,131.1,0.03]
[1744509378867,32.5802,131.11,131.1,0.03]
[1744509379460,64.86068606,131.11,131.1,0.03]
[1744509379771,1.6606,131.1,131.06,0.03]
[1744509379970,32.28048606,131.08,131.06,0.03]
[1744509380271,32.28048606,131.07,131.06,0.03]
[1744509380471,26.0,131.08,131.06,0.03]
[1744509380673,32.70697077,131.07,131.06,0.03]
[1744509380870,32.28048606,131.07,131.06,0.03]
[1744509381482,0.42648471,131.07,131.06,0.03]
[1744509381665,26.0,131.07,131.06,0.03]
[1744509381867,6.5802,131.11,131.06,0.03]
[1744509382074,14.2076,131.11,131.06,0.03]
[1744509382383,7.8301,131.15,131.06,0.03]
[1744509382571,32.28048606,131.14,131.06,0.03]
[1744509382761,26.0,131.12,131.06,0.03]
[1744509382961,32.28048606,131.09,131.06,0.03]
[1744509383160,32.70697077,131.07,131.06,0.03]
[1744509383357,26.0,131.04,130.98,0.03]
[1744509384082,32.28048606,131.01,130.98,0.03]
[1744509384256,24.81914886,131.07,130.99,32.28048606]
[1744509384462,1.5481,131.1,130.98,0.03]
[1744509384683,6.1695,131.12,131.05,32.28048606]
[1744509384894,6.1695,131.12,131.03,18.64964886]
[1744509385185,6.1695,131.17,131.05,18.64964886]
[1744509385395,32.28048606,131.13,131.03,20.58463357]
[1744509385689,0.14216157,131.15,131.04,7.6312]
[1744509385860,32.28048606,131.11,131.04,7.6312]
[1744509386058,26.0,131.09,131.0,18.64964886]
[1744509386270,32.28048606,131.06,130.99,18.64964886]
[1744509386465,19.07613357,131.08,130.98,7.6647]
[1744509386692,6.1695,131.08,131.0,32.28048606]
[1744509386871,26.0,131.09,130.98,7.6645]
[1744509387263,26.0,131.09,130.99,18.64964886]
[1744509387465,13.7965,131.12,131.04,32.28048606]
[1744509387668,82.5481,131.15,131.08,32.28048606]
[1744509387669,1.5481,131.15,131.08,32.28048606]
[1744509387880,6.1695,131.16,131.05,18.64964886]
[1744509388080,38.44998606,131.16,131.05,18.64964886]
[1744509388287,6.1695,131.16,131.05,18.64964886]
[1744509388493,295.40858606,131.2,131.05,18.64964886]
[1744509388494,263.1281,131.2,131.13,32.28048606]
[1744509388672,6.1695,131.21,131.12,18.64964886]
[1744509388878,11.63898208,131.23,131.18,32.28048606]
[1744509389181,19.25918208,131.23,131.12,32.28048606]
[1744509389391,19.25918208,131.23,131.17,32.28048606]
[1744509389689,0.063,131.19,131.14,0.42648471]
[1744509389890,0.063,131.19,131.18,32.28048606]
[1744509390691,0.063,131.19,131.18,83.63710569]
[1744509391002,0.063,131.27,131.19,0.42648471]
[1744509391184,26.063,131.27,131.2,32.28048606]
[1744509391377,26.063,131.27,131.24,32.28048606]
[1744509391575,0.063,131.27,131.24,32.28048606]
[1744509391997,0.063,131.27,131.2,7.6215]
[1744509392200,0.063,131.27,131.24,32.28048606]
[1744509392377,0.063,131.27,131.21,18.64964886]
[1744509392703,0.063,131.27,131.26,32.28048606]
[1744509392885,0.063,131.27,131.25,32.28048606]
[1744509393272,0.063,131.27,131.21,18.64964886]
[1744509393487,0.063,131.27,131.25,32.28048606]
[1744509393872,0.063,131.27,131.26,32.28048606]
[1744509396495,0.063,131.27,131.22,7.6207]
[1744509396795,0.063,131.27,131.25,32.28048606]
[1744509397177,0.063,131.27,131.26,32.28048606]
[1744509397773,0.063,131.27,131.24,7.6194]
[1744509398099,26.063,131.27,131.2,32.28048606]
[1744509398297,58.34348606,131.27,131.22,32.28048606]
[1744509398486,32.28048606,131.26,131.21,32.28048606]
[1744509399177,26.063,131.27,131.17,19.0586]
[1744509399178,32.28048606,131.23,131.18,32.28048606]
[1744509399393,26.0,131.25,131.18,32.28048606]
[1744509399597,32.28048606,131.23,131.18,32.28048606]
[1744509399784,32.28048606,131.24,131.19,32.28048606]
[1744509400193,26.0,131.23,131.19,32.28048606]
[1744509400394,32.28048606,131.24,131.19,32.28048606]
[1744509401478,26.0,131.26,131.2,32.28048606]
[1744509401680,32.28048606,131.25,131.2,32.28048606]
[1744509402378,26.0,131.24,131.2,32.28048606]
[1744509402579,32.28048606,131.26,131.2,32.28048606]
[1744509403688,32.28048606,131.26,131.19,7.6224]
[1744509403895,32.28048606,131.26,131.2,32.28048606]
[1744509404090,32.28048606,131.25,131.2,32.28048606]
[1744509404296,32.28048606,131.21,131.14,7.6254]
[1744509404489,32.28048606,131.19,131.14,32.28048606]
[1744509405001,32.28048606,131.2,131.14,32.28048606]
[1744509405199,32.28048606,131.2,131.12,7.6261]
[1744509405394,26.0,131.17,131.12,39.90658606]
[1744509406101,26.0,131.17,131.1,19.0982]
[1744509406102,58.28048606,131.15,131.1,0.03]
[1744509406279,32.28048606,131.12,131.1,0.03]
[1744509406480,26.0,131.14,131.1,0.03]
[1744509406680,7.6238,131.17,131.11,32.28048606]
[1744509406911,39.90368606,131.18,131.12,32.28048606]
[1744509407110,32.28048606,131.2,131.14,32.28048606]
[1744509407311,32.28048606,131.19,131.14,32.28048606]
[1744509407491,26.0,131.18,131.14,32.28048606]
[1744509408417,39.90178606,131.21,131.16,32.28048606]
[1744509408626,39.90178606,131.21,131.11,7.6267]
[1744509408627,32.28048606,131.19,131.11,7.6267]
[1744509408803,58.28048606,131.18,131.13,32.28048606]
[1744509408999,26.0,131.18,131.14,32.28048606]
[1744509409721,33.6231,131.18,131.12,7.6265]
[1744509409898,33.6231,131.18,131.13,32.28048606]
[1744509410616,33.6231,131.18,131.14,32.28048606]
[1744509411030,26.0,131.18,131.14,32.28048606]
[1744509411336,32.28048606,131.2,131.15,32.28048606]
[1744509411725,26.0,131.19,131.17,32.28048606]
[1744509412035,7.6201,131.24,131.13,18.64964886]
[1744509412327,32.28048606,131.23,131.18,32.28048606]
[1744509412528,32.28048606,131.2,131.13,81.6]
[1744509412700,32.28048606,131.18,131.13,32.28048606]
[1744509413024,26.0,131.21,131.15,32.28048606]
[1744509413225,26.0,131.21,131.12,7.6266]
[1744509413226,32.28048606,131.2,131.14,32.28048606]
[1744509413422,32.28048606,131.18,131.13,32.28048606]
[1744509413625,32.28048606,131.17,131.1,0.03]
[1744509413928,7.6231,131.18,131.13,32.28048606]
[1744509414112,39.90358606,131.18,131.13,32.28048606]
[1744509415323,39.90358606,131.18,131.12,32.28048606]
[1744509415521,39.90358606,131.18,131.13,32.28048606]
[1744509416627,7.6231,131.18,131.12,32.28048606]
[1744509416928,32.28048606,131.19,131.14,32.28048606]
[1744509417126,32.28048606,131.17,131.12,32.28048606]
[1744509417322,32.28048606,131.16,131.11,32.28048606]
[1744509417532,32.28048606,131.16,131.1,39.93778606]
[1744509417707,32.28048606,131.16,131.1,7.6573]
[1744509418029,32.28048606,131.16,131.1,39.93778606]
[1744509418235,39.90508606,131.16,131.1,39.93778606]
[1744509418729,7.6246,131.16,131.11,32.28048606]
[1744509418931,32.28048606,131.18,131.13,32.28048606]
[1744509419138,7.6226,131.19,131.14,32.28048606]
[1744509419306,26.6666,131.25,131.18,32.28048606]
[1744509419506,32.28048606,131.23,131.13,100.24964886]
[1744509419704,32.28048606,131.22,131.17,32.28048606]